bitfinex/quotes_SOLUSD_20240711
["timestamp","ask_amount","ask_price","bid_price","bid_amount"]
[1720740650142,28.81,136.98,136.96,10.0]
[1720740650338,36.1088,137.01,136.96,17.3013]
[1720740650648,28.81,137.01,136.96,10.0]
[1720740650835,7.3003,136.98,136.96,10.0]
[1720740651724,7.3003,136.98,136.95,10.0]
[1720740652120,7.3008,136.97,136.95,10.0]
[1720740652362,7.3005,136.98,136.95,10.0]
[1720740652522,20.0,136.97,136.95,10.0]
[1720740654234,28.81,136.99,136.95,10.0]
[1720740654441,20.0,136.98,136.95,17.3017]
[1720740654642,20.0,136.98,136.95,10.0]
[1720740654836,27.3003,136.98,136.95,10.0]
[1720740655448,20.0,136.98,136.95,10.0]
[1720740656155,27.3003,136.98,136.95,10.0]
[1720740656342,7.3008,136.97,136.95,10.0]
[1720740656845,27.3005,136.98,136.95,10.0]
[1720740658330,26.3005,136.98,136.95,10.0]
[1720740659142,7.3008,136.97,136.94,10.0]
[1720740659445,36.1108,136.97,136.92,33.8268]
[1720740659652,7.3014,136.96,136.92,33.8268]
[1720740660034,36.111,136.97,136.92,33.8268]
[1720740660236,7.3018,136.96,136.92,16.5235]
[1720740660543,28.81,136.95,136.92,7.3034]
[1720740660731,14.37,136.93,136.92,17.3034]
[1720740661233,14.37,136.93,136.9,50.6591]
[1720740661447,35.6604,136.98,136.9,60.6591]
[1720740661448,14.37,136.91,136.9,60.6591]
[1720740662135,14.37,136.91,136.9,45.5646]
[1720740662556,7.3009,136.97,136.92,45.5619]
[1720740662766,28.75,136.96,136.92,45.5622]
[1720740663053,28.75,136.96,136.93,7.3029]
[1720740663054,20.0,136.95,136.93,7.3029]
[1720740663643,28.75,136.96,136.94,10.0]
[1720740663942,7.2999,136.99,136.95,7.3019]
[1720740664143,28.75,137.0,136.96,20.0]
[1720740664144,36.0494,137.0,136.96,20.0]
[1720740664359,36.0494,137.0,136.96,27.3013]
[1720740664562,28.75,137.0,136.97,7.3008]
[1720740665066,36.0496,137.0,136.96,10.0]
[1720740666445,36.0503,136.98,136.94,17.3023]
[1720740666655,28.75,136.98,136.94,17.3023]
[1720740666857,28.75,136.98,136.94,27.3023]
[1720740667151,36.0507,136.98,136.93,18.2563]
[1720740667357,27.3011,136.97,136.94,10.0]
[1720740667561,7.3014,136.96,136.94,10.0]
[1720740667940,36.0514,136.96,136.94,10.0]
[1720740668339,20.0,136.95,136.92,7.3034]
[1720740668856,27.302,136.95,136.91,10.0]
[1720740669232,7.303,136.93,136.91,10.0]
[1720740669437,28.75,136.94,136.91,10.0]
[1720740669438,20.0,136.92,136.91,10.0]
[1720740669855,20.0,136.92,136.91,17.304]
[1720740670064,20.0,136.92,136.91,10.0]
[1720740670264,20.0,136.92,136.9,10.0]
[1720740670562,27.3031,136.93,136.88,23.8446]
[1720740670749,20.0,136.93,136.89,17.3051]
[1720740670934,20.0,136.93,136.9,35.5655]
[1720740672348,20.0,136.93,136.9,28.2613]
[1720740672555,20.0,136.93,136.9,10.0]
[1720740672768,20.0,136.93,136.9,17.3045]
[1720740672960,20.0,136.93,136.91,10.0]
[1720740673160,44.43838879,136.98,136.93,7.3028]
[1720740673369,7.3009,136.97,136.93,10.0]
[1720740674447,20.0,136.96,136.93,10.0]
[1720740674643,27.3014,136.96,136.93,10.0]
[1720740676446,7.63472443,137.02,136.95,10.0]
[1720740676749,7.63472443,137.02,136.97,20.0]
[1720740676750,36.0494,137.0,136.97,20.0]
[1720740677659,28.75,137.0,136.97,20.0]
[1720740677843,36.0493,137.0,136.97,20.0]
[1720740678944,20.0,136.99,136.97,20.0]
[1720740679345,7.2988,137.01,136.99,10.0]
[1720740679965,7.2988,137.01,136.97,20.0]
[1720740680461,20.0,137.0,136.97,20.0]
[1720740680677,7.2992,137.0,136.97,20.0]
[1720740680875,7.3001,136.99,136.97,10.0]
[1720740681444,36.0494,137.0,136.97,10.0]
[1720740681669,7.3002,136.99,136.97,10.0]
[1720740682050,7.3002,136.99,136.96,10.0]
[1720740683048,7.301,136.97,136.93,20.0]
[1720740683366,7.301,136.97,136.93,10.0]
[1720740684151,7.301,136.97,136.93,17.3029]
[1720740684771,48.75,136.96,136.91,38.26]
[1720740684967,27.302,136.95,136.91,38.26]
[1720740685270,7.3026,136.94,136.91,10.0]
[1720740685463,27.302,136.95,136.91,10.0]
[1720740686167,7.3025,136.94,136.9,7.3044]
[1720740686466,27.302,136.95,136.91,10.0]
[1720740686857,7.3029,136.94,136.89,45.5664]
[1720740687054,36.0529,136.94,136.89,45.5664]
[1720740687956,36.0529,136.94,136.9,7.3045]
[1720740690657,36.0529,136.94,136.91,10.0]
[1720740690857,28.75,136.94,136.9,7.3045]
[1720740691061,36.0525,136.94,136.89,45.5664]
[1720740691265,20.0,136.93,136.89,20.0]
[1720740691467,7.3036,136.92,136.89,20.0]
[1720740692277,20.0,136.93,136.87,26.6348]
[1720740692457,28.75,136.9,136.85,27.3069]
[1720740692653,28.75,136.88,136.85,20.0]
[1720740693281,28.75,136.88,136.85,10.0]
[1720740693486,20.0,136.87,136.83,38.2699]
[1720740693694,28.75,136.86,136.83,10.0]
[1720740693899,36.0579,136.84,136.81,10.0]
[1720740694098,36.0579,136.84,136.79,27.3103]
[1720740694466,27.3083,136.83,136.79,20.0]
[1720740694766,27.3085,136.83,136.79,20.0]
[1720740694974,27.3085,136.83,136.79,10.0]
[1720740696172,28.75,136.82,136.78,7.3107]
[1720740696973,20.0,136.83,136.8,17.3095]
[1720740697162,48.75,136.84,136.8,10.0]
[1720740697362,48.75,136.84,136.79,18.2751]
[1720740697763,56.0579,136.84,136.8,10.0]
[1720740698362,48.75,136.84,136.8,17.3099]
[1720740699199,56.0578,136.84,136.8,10.0]
[1720740699386,56.0578,136.84,136.79,35.5853]
[1720740699565,7.3083,136.83,136.79,28.2751]
[1720740699873,20.0,136.82,136.79,28.2751]
[1720740700085,48.75,136.82,136.79,18.2751]
[1720740700466,48.75,136.82,136.78,17.3108]
[1720740700467,56.0588,136.82,136.78,17.3108]
[1720740700779,56.0588,136.82,136.78,10.0]
[1720740701368,20.0,136.82,136.81,10.0]
[1720740702467,20.0,136.82,136.79,27.3103]
[1720740702681,20.0,136.83,136.79,17.3103]
[1720740703286,20.0,136.83,136.78,18.2773]
[1720740703478,20.0,136.84,136.78,18.2773]
[1720740703785,28.75,136.82,136.78,18.2773]
[1720740704190,36.059,136.82,136.78,18.2773]
[1720740704687,36.059,136.82,136.77,27.3111]
[1720740705471,20.0,136.81,136.77,27.3111]
[1720740705862,20.0,136.81,136.78,7.3109]
[1720740706281,20.0,136.81,136.77,45.5901]
[1720740707373,20.0,136.81,136.78,7.3109]
[1720740707573,20.0,136.81,136.79,10.0]
[1720740707787,20.0,136.81,136.78,7.3109]
[1720740707969,20.0,136.81,136.77,45.59]
[1720740708878,20.0,136.81,136.79,38.2759]
[1720740709276,20.0,136.84,136.8,7.3099]
[1720740709688,27.3079,136.84,136.79,45.5861]
[1720740709989,7.3083,136.83,136.79,45.5861]
[1720740710178,20.0,136.82,136.79,45.5861]
[1720740710771,20.0,136.82,136.81,10.0]
[1720740711787,2.95134002,136.87,136.83,10.0]
[1720740711972,28.75,136.88,136.83,20.0]
[1720740712470,7.3066,136.87,136.83,20.0]
[1720740712674,7.3067,136.86,136.83,20.0]
[1720740712887,7.3063,136.87,136.83,20.0]
[1720740713283,20.0,136.86,136.83,10.0]
[1720740713486,7.3081,136.84,136.83,10.0]
[1720740714299,7.3081,136.84,136.8,16.2036]
[1720740714780,7.3099,136.8,136.77,35.6282]
[1720740714978,7.3099,136.8,136.63,15.0]
[1720740714979,7.3101,136.8,136.76,16.3654]
[1720740715288,7.3086,136.83,136.77,17.3111]
[1720740715597,28.75,136.81,136.77,10.0]
[1720740715784,20.0,136.8,136.77,10.0]
[1720740718491,28.75,136.79,136.75,10.0]
[1720740718793,20.0,136.78,136.74,22.1756]
[1720740718974,20.0,136.78,136.75,55.0]
[1720740720079,28.75,136.81,136.77,17.3114]
[1720740720296,20.0,136.8,136.77,28.2784]
[1720740720502,20.0,136.8,136.76,17.4818]
[1720740720503,20.0,136.8,136.76,7.4818]
[1720740721105,28.75,136.79,136.75,10.0]
[1720740721384,28.75,136.81,136.79,10.0]
[1720740721590,28.75,136.83,136.79,10.0]
[1720740721992,36.0586,136.83,136.78,7.3109]
[1720740722197,36.0586,136.83,136.79,10.0]
[1720740722719,28.75,136.83,136.79,17.3102]
[1720740723007,28.75,136.83,136.78,25.7577]
[1720740723008,20.0,136.82,136.78,25.7577]
[1720740723194,20.0,136.82,136.79,45.0]
[1720740723882,20.0,136.82,136.78,25.5877]
[1720740724076,7.3094,136.81,136.77,10.0]
[1720740724302,20.0,136.8,136.77,10.0]
[1720740724499,20.0,136.8,136.76,21.4081]
[1720740724500,27.31,136.8,136.76,6.2023]
[1720740724686,27.31,136.8,136.75,45.5931]
[1720740725084,20.0,136.8,136.78,10.0]
[1720740725483,27.3101,136.8,136.76,10.0]
[1720740726187,20.0,136.8,136.78,10.0]
[1720740726393,20.0,136.8,136.76,17.3118]
[1720740727404,27.31,136.8,136.76,10.0]
[1720740727580,20.0,136.8,136.75,10.0]
[1720740727785,20.0,136.8,136.76,10.0]
[1720740727985,27.3102,136.8,136.76,10.0]
[1720740728203,20.0,136.8,136.76,17.312]
[1720740729604,28.75,136.81,136.79,10.0]
[1720740729796,7.3089,136.82,136.79,10.0]
[1720740729983,7.3089,136.82,136.77,27.3113]
[1720740730187,7.3101,136.8,136.77,20.0]
[1720740730688,7.3101,136.8,136.77,10.0]
[1720740730886,36.0595,136.81,136.77,27.3115]
[1720740731096,20.0,136.8,136.77,27.3115]
[1720740731390,20.0,136.8,136.77,20.0]
[1720740731601,20.0,136.8,136.77,27.3115]
[1720740731902,20.0,136.8,136.77,20.0]
[1720740732110,27.31,136.8,136.77,20.0]
[1720740732587,7.3105,136.79,136.77,20.0]
[1720740732915,27.3101,136.8,136.77,10.0]
[1720740733418,7.3106,136.79,136.75,20.0]
[1720740733819,36.0606,136.79,136.75,20.0]
[1720740734033,28.75,136.79,136.75,27.3123]
[1720740735807,28.75,136.79,136.77,17.3115]
[1720740736013,28.75,136.79,136.73,6.5696]
[1720740736014,36.0588,136.83,136.79,10.0]
[1720740736187,20.0,136.82,136.78,10.0]
[1720740736496,20.0,136.82,136.75,27.3125]
[1720740736497,36.0605,136.79,136.75,27.3125]
[1720740736696,28.75,136.79,136.75,20.0]
[1720740736901,28.75,136.79,136.77,10.0]
[1720740737404,28.75,136.79,136.75,27.3124]
[1720740737613,36.0605,136.79,136.75,10.0]
[1720740737813,36.0605,136.79,136.75,20.0]
[1720740738112,36.0605,136.79,136.75,27.3125]
[1720740738491,36.0605,136.79,136.75,20.0]
[1720740739114,27.3111,136.78,136.74,25.5945]
[1720740739588,20.0,136.78,136.75,7.3125]
[1720740739787,36.0615,136.77,136.73,26.5696]
[1720740740005,36.0616,136.77,136.73,45.5976]
[1720740740193,28.75,136.77,136.73,45.5976]
[1720740740792,28.75,136.77,136.73,35.5976]
[1720740740992,36.0617,136.77,136.73,18.284]
[1720740741215,20.0,136.76,136.72,7.314]
[1720740741517,36.0638,136.73,136.69,10.0]
[1720740741992,20.0,136.72,136.69,10.0]
[1720740742413,20.0,136.72,136.69,17.3158]
[1720740743019,20.0,136.72,136.69,10.0]
[1720740743313,20.0,136.72,136.69,17.3157]
[1720740743817,27.3143,136.72,136.68,10.0]
[1720740744009,20.0,136.72,136.69,10.0]
[1720740744811,27.3143,136.72,136.69,10.0]
[1720740745609,7.3149,136.71,136.68,10.0]
[1720740746416,7.3147,136.71,136.69,10.0]
[1720740746712,7.3147,136.71,136.68,10.0]
[1720740747315,7.3153,136.7,136.67,10.0]
[1720740747513,20.0,136.69,136.67,10.0]
[1720740747733,27.3159,136.69,136.67,10.0]
[1720740748030,20.0,136.69,136.67,10.0]
[1720740748207,27.3158,136.69,136.67,10.0]
[1720740748417,7.3158,136.69,136.67,10.0]
[1720740748610,44.0419,136.7,136.65,10.0]
[1720740748812,7.3169,136.67,136.65,10.0]
[1720740749535,7.3179,136.65,136.64,10.0]
[1720740749701,7.3188,136.64,136.62,10.0]
[1720740750114,7.3181,136.65,136.62,10.0]
[1720740750542,28.75,136.66,136.61,0.8583849]
[1720740750822,7.319,136.63,136.61,0.8583849]
[1720740751004,20.0,136.62,136.61,0.8583849]
[1720740751208,27.3195,136.62,136.61,0.8583849]
[1720740752119,20.0,136.62,136.61,0.8583849]
[1720740753637,27.3195,136.62,136.61,0.8583849]
[1720740753929,56.0695,136.62,136.61,0.8583849]
[1720740755011,5.82146771,136.68,136.63,10.0]
[1720740755234,21.9911,136.7,136.63,10.0]
[1720740755527,36.0672,136.67,136.63,10.0]
[1720740755735,7.3181,136.65,136.61,10.8583849]
[1720740756108,7.3179,136.65,136.61,10.8583849]
[1720740756308,7.3175,136.66,136.63,10.0]
[1720740756610,48.75,136.65,136.63,10.0]
[1720740756821,48.75,136.65,136.61,36.4779849]
[1720740757033,56.0682,136.65,136.61,10.8583849]
[1720740757410,7.3186,136.64,136.61,10.8583849]
[1720740757912,48.75,136.65,136.63,10.0]
[1720740758517,48.75,136.65,136.61,18.1780849]
[1720740758835,48.75,136.65,136.63,10.0]
[1720740759239,48.75,136.65,136.61,10.8583849]
[1720740759604,56.0683,136.65,136.61,10.8583849]
[1720740759809,48.75,136.65,136.61,10.8583849]
[1720740760026,56.068,136.65,136.61,10.8583849]
[1720740760227,48.75,136.65,136.62,7.3194]
[1720740760420,48.75,136.65,136.61,10.8583849]
[1720740760942,48.75,136.65,136.63,10.0]
[1720740761441,48.75,136.65,136.63,20.0]
[1720740761740,48.75,136.65,136.63,10.0]
[1720740762110,56.068,136.65,136.61,39.1579849]
[1720740762314,48.75,136.65,136.63,10.0]
[1720740762629,48.75,136.65,136.61,20.8583849]
[1720740762931,48.75,136.65,136.63,10.0]
[1720740763131,56.0679,136.65,136.61,28.1781849]
[1720740763441,56.0679,136.65,136.61,20.8583849]
[1720740763647,7.3185,136.64,136.61,20.8583849]
[1720740764150,56.0681,136.65,136.61,20.8583849]
[1720740764845,30.37878879,136.7,136.64,10.0]
[1720740765015,7.3166,136.68,136.64,10.0]
[1720740765219,28.75,136.68,136.63,10.0]
[1720740765436,28.75,136.66,136.62,10.17]
[1720740765745,7.3179,136.65,136.62,10.17]
[1720740766732,28.75,136.66,136.64,10.0]
[1720740767438,28.75,136.68,136.66,10.0]
[1720740767749,20.0,136.67,136.66,10.0]
[1720740768249,15.1995,136.73,136.69,10.0]
[1720740768544,7.3152,136.71,136.67,10.0]
[1720740768745,36.0644,136.72,136.69,10.0]
[1720740768947,7.3149,136.71,136.67,20.0]
[1720740769445,7.3149,136.71,136.69,10.0]
[1720740769654,36.0643,136.72,136.69,10.0]
[1720740769951,7.315,136.71,136.69,10.0]
[1720740770245,36.0644,136.72,136.69,10.0]
[1720740771050,20.0,136.71,136.69,10.0]
[1720740772337,20.0,136.71,136.67,10.0]
[1720740772530,36.0663,136.68,136.67,10.0]
[1720740773043,56.0663,136.68,136.67,10.0]
[1720740773441,7.3171,136.67,136.64,10.0]
[1720740773756,48.75,136.68,136.65,10.0]
[1720740773940,56.0663,136.68,136.65,10.0]
[1720740774142,7.3172,136.67,136.64,10.0]
[1720740775231,7.3172,136.67,136.63,7.3189]
[1720740775431,48.75,136.68,136.62,10.0]
[1720740775432,7.3181,136.65,136.62,10.0]
[1720740776133,48.75,136.66,136.63,10.0]
[1720740776537,56.0674,136.66,136.61,18.1781849]
[1720740776744,7.318,136.65,136.61,36.4770849]
[1720740776937,7.318,136.65,136.61,29.1572849]
[1720740777136,7.3185,136.64,136.61,10.8583849]
[1720740777549,36.0685,136.64,136.61,0.8583849]
[1720740778048,7.319,136.63,136.61,0.8583849]
[1720740778255,36.0687,136.64,136.61,0.8583849]
[1720740778648,36.0695,136.62,136.61,0.8583849]
[1720740778842,28.75,136.62,136.61,0.8583849]
[1720740779156,36.0689,136.64,136.61,0.8583849]
[1720740779355,27.3192,136.63,136.61,0.8583849]
[1720740779565,7.3219,136.58,136.51,10.0]
[1720740779770,28.75,136.56,136.53,20.0]
[1720740779949,20.0,136.55,136.53,20.0]
[1720740780272,27.3238,136.55,136.53,10.0]
[1720740780435,20.0,136.55,136.54,10.0]
[1720740780644,20.0,136.55,136.53,10.0]
[1720740781556,20.0,136.55,136.53,20.0]
[1720740782250,20.0,136.55,136.53,10.0]
[1720740782554,20.0,136.55,136.51,27.3253]
[1720740782762,27.3233,136.55,136.53,10.0]
[1720740783465,20.0,136.55,136.53,10.0]
[1720740784542,39.9518,136.62,136.55,10.0]
[1720740784761,28.75,136.6,136.57,10.0]
[1720740784936,7.3197,136.62,136.59,10.0]
[1720740785138,28.75,136.62,136.59,17.3211]
[1720740785352,28.75,136.62,136.59,10.0]
[1720740785836,36.0696,136.62,136.59,10.0]
[1720740786037,7.3201,136.61,136.59,10.0]
[1720740786256,7.3206,136.6,136.59,10.0]
[1720740786434,7.3201,136.61,136.59,10.0]
[1720740786839,7.3206,136.6,136.59,10.0]
[1720740787038,28.75,136.6,136.57,10.0]
[1720740787559,36.0708,136.6,136.57,10.0]
[1720740787761,28.75,136.6,136.57,10.0]
[1720740789148,36.0707,136.6,136.57,10.0]
[1720740789351,7.3212,136.59,136.55,10.0]
[1720740789554,20.0,136.58,136.54,17.3237]
[1720740789863,20.0,136.58,136.55,7.3232]
[1720740790063,20.0,136.58,136.54,17.3237]
[1720740790262,20.0,136.58,136.54,35.633]
[1720740790450,20.0,136.58,136.53,10.0]
[1720740790451,7.3227,136.57,136.53,10.0]
[1720740790653,20.0,136.56,136.53,27.3241]
[1720740790855,56.0721,136.58,136.53,27.3241]
[1720740791072,56.0721,136.58,136.53,45.635]
[1720740791757,48.75,136.58,136.51,10.0]
[1720740791963,36.073,136.56,136.53,10.0]
[1720740792147,20.0,136.55,136.53,10.0]
[1720740792749,20.0,136.55,136.53,17.3243]
[1720740793058,20.0,136.55,136.51,45.6387]
[1720740793752,27.3234,136.55,136.51,28.3135]
[1720740794144,27.3234,136.55,136.51,45.6387]
[1720740794343,20.0,136.55,136.51,45.6387]
[1720740795052,20.0,136.55,136.52,7.3248]
[1720740795254,28.75,136.56,136.53,45.6352]
[1720740795447,20.0,136.55,136.53,35.635]
[1720740795769,7.3228,136.56,136.53,10.0]
[1720740795953,20.0,136.55,136.53,10.0]
[1720740796156,28.75,136.56,136.53,20.0]
[1720740796348,16.2032,136.59,136.53,20.0]
[1720740796349,28.75,136.59,136.55,7.3229]
[1720740796679,28.75,136.59,136.54,70.8033]
[1720740796843,28.75,136.59,136.54,70.6333]
[1720740797264,36.0713,136.59,136.54,70.6333]
[1720740797459,20.0,136.58,136.54,25.6333]
[1720740798458,27.322,136.58,136.54,18.3096]
[1720740798663,27.322,136.58,136.53,17.3242]
[1720740798664,28.75,136.57,136.53,10.0]
[1720740799052,20.0,136.56,136.53,10.0]
[1720740799453,20.0,136.56,136.53,17.3243]
[1720740800074,28.75,136.57,136.55,10.0]
[1720740800364,36.0715,136.59,136.54,35.6331]
[1720740800672,27.3217,136.58,136.54,35.6331]
[1720740800852,20.0,136.58,136.54,35.6331]
[1720740801175,20.0,136.58,136.56,10.0]
[1720740801550,20.0,136.58,136.55,17.3232]
[1720740801865,20.0,136.58,136.54,25.633]
[1720740804074,20.0,136.58,136.55,10.0]
[1720740804281,7.3224,136.57,136.55,10.0]
[1720740804456,7.3227,136.56,136.55,10.0]
[1720740804657,7.3224,136.57,136.55,10.0]
[1720740804976,7.3224,136.57,136.53,7.3243]
[1720740805354,7.3224,136.57,136.52,35.6371]
[1720740805554,36.0724,136.57,136.52,35.6371]
[1720740805766,28.75,136.57,136.52,38.3123]
[1720740805968,20.0,136.58,136.54,28.3096]
[1720740806271,20.0,136.58,136.54,38.3096]
[1720740806474,20.0,136.58,136.55,7.323]
[1720740806976,20.0,136.58,136.56,27.3225]
[1720740807151,20.0,136.58,136.56,45.6293]
[1720740807353,27.3207,136.6,136.56,45.6293]
[1720740807784,28.75,136.61,136.56,45.6293]
[1720740807785,36.0702,136.61,136.56,45.6293]
[1720740807962,7.64973775,136.63,136.62,17.3195]
[1720740808156,28.75,136.67,136.63,7.319]
[1720740808556,36.067,136.67,136.62,35.6177]
[1720740808775,28.75,136.67,136.62,10.0]
[1720740808974,7.3176,136.66,136.62,10.0]
[1720740809477,7.3181,136.65,136.61,10.0]
[1720740809980,7.3185,136.64,136.61,10.0]
[1720740810358,7.319,136.63,136.61,10.0]
[1720740810558,7.3186,136.64,136.6,10.0]
[1720740810886,28.75,136.65,136.58,27.3216]
[1720740811079,28.75,136.63,136.58,27.3216]
[1720740811372,28.75,136.63,136.59,7.321]
[1720740811575,20.0,136.64,136.6,27.3206]
[1720740811796,20.0,136.64,136.61,7.32]
[1720740812381,20.0,136.65,136.62,7.3195]
[1720740813281,28.75,136.67,136.63,7.319]
[1720740813781,36.067,136.67,136.62,45.618]
[1720740813961,7.3174,136.66,136.62,38.2986]
[1720740814475,20.0,136.65,136.62,38.2986]
[1720740814666,20.0,136.65,136.62,45.618]
[1720740814869,20.0,136.66,136.62,45.618]
[1720740816675,27.3174,136.66,136.62,45.618]
[1720740816896,20.0,136.66,136.65,10.0]
[1720740817391,20.0,136.66,136.64,10.0]
[1720740817556,20.0,136.67,136.64,10.0]
[1720740818055,7.3174,136.66,136.64,10.0]
[1720740819071,7.3174,136.66,136.63,10.0]
[1720740819471,7.3174,136.66,136.62,28.2986]
[1720740820061,27.317,136.67,136.63,10.0]
[1720740820261,27.317,136.67,136.63,17.3189]
[1720740820472,27.317,136.67,136.63,10.0]
[1720740820668,7.3176,136.66,136.62,35.6179]
[1720740820878,7.3176,136.66,136.62,28.2986]
[1720740821378,20.0,136.67,136.63,10.0]
[1720740821882,7.318,136.65,136.62,10.0]
[1720740824575,28.75,136.66,136.62,10.0]
[1720740824576,36.0677,136.66,136.62,10.0]
[1720740824888,28.75,136.66,136.63,10.0]
[1720740825184,20.0,136.65,136.62,17.3193]
[1720740827681,36.0686,136.64,136.59,7.3208]
[1720740827989,27.3191,136.63,136.58,45.6255]
[1720740828875,7.3196,136.62,136.58,45.6255]
[1720740829492,7.3196,136.62,136.58,20.0]
[1720740829989,20.0,136.63,136.6,10.0]
[1720740830195,20.0,136.63,136.58,45.6255]
[1720740830395,27.3193,136.63,136.58,45.6255]
[1720740831402,7.3196,136.62,136.58,45.6255]
[1720740831776,20.0,136.63,136.58,20.0]
[1720740832084,7.3205,136.61,136.58,20.0]
[1720740832705,36.0697,136.62,136.58,20.0]
[1720740835212,28.75,136.62,136.58,10.0]
[1720740835381,7.3211,136.59,136.58,10.0]
[1720740835581,28.75,136.62,136.58,10.0]
[1720740835782,7.3211,136.59,136.58,10.0]
[1720740836006,56.0711,136.59,136.58,10.0]
[1720740836180,56.0711,136.59,136.54,38.3096]
[1720740836181,7.3219,136.58,136.54,38.3096]
[1720740836888,7.3243,136.54,136.51,10.0]
[1720740837192,7.3246,136.53,136.51,10.0]
[1720740837569,7.324,136.54,136.51,10.0]
[1720740838200,7.3244,136.53,136.49,31.8009]
[1720740838393,20.0,136.52,136.49,31.8009]
[1720740838596,20.0,136.52,136.49,16.0849]
[1720740838893,20.0,136.52,136.51,20.0]
[1720740840075,20.0,136.52,136.51,10.0]
[1720740840281,7.3254,136.51,136.48,10.0]
[1720740840995,27.325,136.52,136.49,10.0]
[1720740841189,20.0,136.52,136.49,10.0]
[1720740841502,20.0,136.52,136.5,10.0]
[1720740841904,7.3254,136.51,136.5,10.0]
[1720740843200,7.326,136.5,136.49,10.0]
[1720740844299,7.3257,136.51,136.49,10.0]
[1720740844899,7.326,136.5,136.49,10.0]
[1720740845499,7.3256,136.51,136.49,10.0]
[1720740845880,7.3256,136.51,136.5,10.0]
[1720740846086,7.3249,136.52,136.5,10.0]
[1720740846593,7.3254,136.51,136.49,10.0]
[1720740847602,7.3251,136.52,136.5,10.0]
[1720740847803,7.326,136.5,136.49,10.0]
[1720740848594,7.3265,136.49,136.48,10.0]
[1720740849706,7.327,136.48,136.47,0.8583849]
[1720740850407,28.75,136.49,136.47,0.8583849]
[1720740850408,36.0767,136.49,136.47,0.8583849]
[1720740850794,7.327,136.48,136.47,0.8583849]
[1720740851795,45.6447,136.48,136.47,0.8583849]
[1720740852597,45.6447,136.48,136.44,10.0]
[1720740852598,7.3286,136.45,136.44,10.0]
[1720740852809,36.0786,136.45,136.44,10.0]
[1720740853692,7.3293,136.44,136.42,10.04343518]
[1720740855986,44.5055,136.45,136.42,0.04343518]
[1720740856194,36.0797,136.43,136.42,0.04343518]
[1720740856492,56.0797,136.43,136.42,0.04343518]
[1720740857086,48.75,136.43,136.42,0.04343518]
[1720740857291,56.0797,136.43,136.42,0.04343518]
[1720740858611,7.3284,136.46,136.43,20.0]